[Event "Uruguayan Championship 2022"]
[Site "Montevideo"]
[Date "2022.04.14"]
[Round "7.4"]
[White "Carbone, Diego"]
[Black "Carvalho, Guillermo"]
[Result "1-0"]
[ECO "E01"]
[WhiteElo "2272"]
[BlackElo "2171"]
[Annotator "TA"]
[PlyCount "105"]
[EventDate "2022.04.08"]
[EventType "tourn"]
[EventCountry "URU"]
[SourceTitle "playchess.com"]
[Source "ChessBase"]
[SourceQuality "1"]
[TimeControl "40/5400+30:1800+30"]

{[%evp 22,105,35,35,27,31,25,32,44,25,27,32,30,30,38,32,34,30,75,89,64,33,48,50,28,33,87,97,94,100,216,112,120,85,112,130,116,68,128,100,166,125,187,197,194,204,451,452,427,-131,-142,-174,-160,-165,-159,-153,-177,-164,-15,-31,558,527,729,705,690,586,1819,1768,1666,1763,1610,1622,1609,1572,1291,953,953,943,884,603,612,548,29993,29994,29994,29995]} 1. d4 {[%emt 0:00:03]} Nf6 {[%emt 0:00:06]} 2. c4 {[%emt 0:00:12]} e6 {[%emt 0:00:10]} 3. g3 {[%emt 0:00:25]} d5 {[%emt 0:00:11]} 4. Bg2 {[%emt 0:00:45]} Bb4+ {[%emt 0:00:11]} 5. Bd2 {[%emt 0:00:07]} Be7 {[%emt 0:00:05]} 6. Nf3 {[%emt 0:00:14]} O-O {[%emt 0:00:08]} 7. O-O {[%emt 0:00:04]} c6 {[%emt 0:00:07]} 8. Qc2 {[%emt 0:00:24]} Nbd7 {[%emt 0:00:59]} 9. Bf4 {[%emt 0:01:00]} b6 {[%emt 0:00:17]} 10. Rd1 {[%emt 0:00:54]} Bb7 {[%emt 0:03:11]} 11. Ne5 {[%emt 0:00:35] 11.Ne5 is better than 11.Nc3.} Rc8 {[%emt 0:17:12]} 12. Nc3 {[%emt 0:00:45]} Nh5 {[%emt 0:07:27] E08: Closed Catalan: Main Line: 7 Qc2.} 13. Bc1 {[%emt 0:03:03]} Nhf6 {[%emt 0:02:43]} 14. e4 {[%emt 0:00:54]} dxe4 {[%emt 0:01:22] White is slightly better.} 15. Nxe4 {[%emt 0:01:09]} Nxe4 {[%emt 0:00:44]} 16. Bxe4 {[%emt 0:00:11]} f5 {[%emt 0:07:49]} 17. Nxd7 {[%emt 0:05:29]} Qxd7 {[%emt 0:00:46]} 18. Bg2 {[%emt 0:00:12]} Bf6 {[%emt 0:03:08]} 19. Be3 {[%emt 0:00:51]} Rfd8 {[%emt 0:05:12] [#]} 20. c5 $146 {[%emt 0:04:16]} ({Predecessor:} 20. a4 Ba8 21. a5 b5 22. c5 g5 23. b4 Qf7 24. Ra3 h5 25. Rad3 Rd7 26. a6 {1-0 (37) Korogodski,L-Nenneman,D ICCF email 2014}) 20... Qf7 {[%emt 0:03:20]} 21. cxb6 {[%emt 0:08:03]} axb6 {[%emt 0:00:12][%cal Oc6c5]} 22. Qb3 {[%emt 0:00:23]} b5 {[%emt 0:00:31]} 23. a4 {[%emt 0:01:33][%cal Ba2a4,Ba4a5,Ba5a6][%mdl 32]} Ba6 {[%emt 0:05:25]} (23... bxa4 $14 24. Qxa4 (24. Rxa4 e5 $14) 24... Ra8) 24. a5 $16 {[%emt 0:05:08]} Rd6 {[%emt 0:00:47]} 25. Rac1 {[%emt 0:04:02]} Bb7 {[%emt 0:02:35]} (25... g5 $16) 26. Qa3 {[%emt 0:08:48]} ({Only move:} 26. a6 $1 $18 Ba8 27. d5) 26... Qd7 {[%emt 0:00:40]} 27. Bf3 {[%emt 0:05:24]} Rd8 {[%emt 0:06:46]} 28. a6 {[%emt 0:03:43]} Ba8 {[%emt 0:00:51]} 29. Qa5 {[%emt 0:05:54]} (29. b4 $16) 29... g5 {[%emt 0:04:56]} (29... c5 $1 $14 30. d5 Qa7) 30. h3 {[%emt 0:10:06] &Bianco is more active.} Qg7 {[%emt 0:05:51]} (30... h5 $16) 31. Kh2 {[%emt 0:00:18]} g4 {[%emt 0:01:14]} (31... Qf7 $16 32. Rd2 R8d7) 32. hxg4 $18 {[%emt 0:01:16]} fxg4 {[%emt 0:00:07]} 33. Be4 {[%emt 0:01:29]} e5 $2 {[%emt 0:04:27]} (33... Bxd4 {was worth a try.} 34. Bxd4 e5) 34. dxe5 {[%emt 0:08:07]} Rxd1 {[%emt 0:00:36]} 35. Rxd1 $2 {[%emt 0:00:33]} ({White must play} 35. exf6 $18 {Threatening mate with Rxd1.} Qf7 36. Rc5) 35... Rxd1 $17 {[%emt 0:00:10]} 36. exf6 {[%emt 0:00:51]} Qf7 {[%emt 0:01:40] ( -> ...Qh5+)} 37. Bg5 {[%emt 0:00:17]} Qh5+ $1 {[%emt 0:03:46]} 38. Bh4 {[%emt 0:00:06]} Qc5 {[%emt 0:01:05]} 39. Qa2+ {[%emt 0:10:39] [#]} Kf8 {[%emt 0:03:20]} ({Black should play} 39... Qc4 $1 $19 {[%cal Rc4a2]} 40. Qxc4+ bxc4) 40. b4 $1 $11 {[%emt 0:06:56] The board is on fire.} Qd4 {[%emt 0:07:29][%mdl 8192] [#] This costs Black the game.} (40... Qc4 $15 41. Qxc4 bxc4) 41. Bg2 $1 $18 {[%emt 0:10:09]} ({But not} 41. Bxh7 $2 Qd5 42. Qxd5 cxd5 $19) 41... Qc4 {[%emt 0:17:15] Prevents Qe6.} 42. Qa5 {[%emt 0:02:48] Black must now prevent Qb6.} Qe6 {[%emt 0:01:59]} 43. Qc7 {[%emt 0:02:22] Threatens to win with Qa7.} Qd7 {[%emt 0:02:47]} 44. Qb8+ {[%emt 0:01:57]} Qe8 {[%emt 0:02:26]} 45. Qa7 {[%emt 0:03:20][%csl Gf6][%cal Ra7g7]} Rd7 {[%emt 0:00:30] Prevents Qg7+.} 46. Qc5+ {[%emt 0:00:07]} Kg8 {[%emt 0:01:36]} 47. Qg5+ {[%emt 0:04:17]} Qg6 {[%emt 0:00:35]} 48. Qf4 {[%emt 0:00:14] Strongly threatening Qb8+.} Rf7 {[%emt 0:02:20]} 49. Be4 {[%emt 0:03:59]} Qh5 {[%emt 0:00:16]} 50. Kg1 {[%emt 0:02:05] White threatens Bf5 and mate.} Rf8 {[%emt 0:00:33]} 51. Bf5 {[%emt 0:03:30]} c5 {[%emt 0:01:36]} 52. Be6+ {[%emt 0:00:53]} Kh8 {[%emt 0:01:07]} 53. f7 {[%emt 0:00:22] Weighted Error Value: White=0.40/Black=0.66} 1-0

[Event "Uruguayan Championship 2022"]
[Site "Montevideo"]
[Date "2022.04.14"]
[Round "7.5"]
[White "Coppola, Claudio"]
[Black "Vazquez, Facundo"]
[Result "1/2-1/2"]
[ECO "D00"]
[WhiteElo "2285"]
[BlackElo "2319"]
[Annotator "TA"]
[PlyCount "39"]
[EventDate "2022.04.08"]
[EventType "tourn"]
[EventCountry "URU"]
[SourceTitle "playchess.com"]
[Source "ChessBase"]
[SourceQuality "1"]
[TimeControl "40/5400+30:1800+30"]

{[%evp 9,39,-32,-20,-40,-37,-42,8,-11,-18,-39,-40,-41,-47,-47,-45,-49,-41,-45,-36,-40,-40,-94,-44,-54,-33,-70,-68,-114,0,0,0,0]} 1. d4 {[%emt 0:01:33]} d5 {[%emt 0:00:10]} 2. Nc3 {[%emt 0:01:46]} Nf6 {[%emt 0:00:09]} 3. Bf4 {[%emt 0:00:06]} e6 {[%emt 0:00:08]} 4. e3 {[%emt 0:00:50]} Bb4 {[%emt 0:02:14]} 5. Bd3 {[%emt 0:06:24]} c5 {[%emt 0:04:04]} 6. dxc5 {[%emt 0:01:14] D00: 1 d4 d5: Unusual lines.} Nbd7 {[%emt 0:09:15]} 7. Nge2 {[%emt 0:05:49]} Nxc5 {[%emt 0:04:34]} (7... a6 $15) 8. Bb5+ {[%emt 0:04:22] [#]} Ncd7 $146 {[%emt 0:05:37]} ({Predecessor:} 8... Bd7 9. Qd4 Qa5 10. a3 Bxc3+ 11. Nxc3 Qb6 12. b4 Bxb5 13. bxc5 Qc6 14. Rb1 Ba6 {1-0 (38) Benitez Lozano,J (2373)-Corrales Jimenez,Z (2194) Mexico City 2020}) 9. O-O {[%emt 0:05:10][%cal Oe3e4]} a6 {[%emt 0:03:24]} 10. a3 {[%emt 0:03:12]} Be7 {[%emt 0:02:49]} 11. Bxd7+ {[%emt 0:03:39]} Bxd7 {[%emt 0:00:13]} 12. Nd4 {[%emt 0:00:40]} O-O {[%emt 0:00:43]} 13. Qe2 {[%emt 0:02:40]} Qb6 {[%emt 0:03:52]} 14. Rab1 {[%emt 0:07:32]} Bd6 {[%emt 0:06:01]} 15. Bg5 {[%emt 0:02:34] [#]} (15. Nb3 $15) 15... Ne8 {[%emt 0:03:13]} ({Better is} 15... Ne4 $1 $17 {[%cal Re4g5]} 16. Nxe4 dxe4) 16. Rfd1 $15 {[%emt 0:01:41]} Nc7 {[%emt 0:05:17]} 17. Qg4 {[%emt 0:18:59]} f5 {[%emt 0:03:57] Against e4} 18. Qh4 {[%emt 0:00:19] [#]} (18. Qh5 $15) 18... h6 {[%emt 0:13:28]} (18... Rae8 $1 $17 {Hoping for ...h6.} 19. Qh5 e5) 19. Be7 $11 {[%emt 0:01:16]} g5 {[%emt 0:01:19]} 20. Qxh6 {[%emt 0:03:05] Weighted Error Value: White=0.12 (very precise) /Black=0.17 (very precise)} ({But not} 20. Bxg5 hxg5 21. Qxg5+ Kf7 22. Qh5+ Ke7 23. Qh4+ Ke8 $17) 1/2-1/2

[Event "Uruguayan Championship 2022"]
[Site "Montevideo"]
[Date "2022.04.14"]
[Round "7.6"]
[White "Hoffman, Alejandro"]
[Black "Vaz Lacuesta, Leonardo"]
[Result "1-0"]
[ECO "E16"]
[WhiteElo "2403"]
[BlackElo "2018"]
[Annotator "TA"]
[PlyCount "125"]
[EventDate "2022.04.08"]
[EventType "tourn"]
[EventCountry "URU"]
[SourceTitle "playchess.com"]
[Source "ChessBase"]
[SourceQuality "1"]
[TimeControl "40/5400+30:1800+30"]

{[%evp 17,125,27,45,35,43,37,47,43,60,48,59,54,85,77,80,60,55,31,93,84,156,88,109,119,95,70,91,103,102,101,94,99,93,101,88,110,117,133,235,208,199,81,77,61,166,146,212,209,279,291,269,247,549,534,573,564,574,556,737,564,550,305,397,279,255,243,173,215,199,162,403,371,421,420,484,473,459,453,445,452,496,492,747,735,869,814,1359,1295,1278,1314,1158,1332,1339,1375,1402,1301,1415,1017,1272,1316,1699,1431,1511,1329,1212,1109,3640,7389,2816,2608]} 1. d4 {[%emt 0:00:04]} Nf6 {[%emt 0:00:09]} 2. c4 {[%emt 0:00:14]} e6 {[%emt 0:00:08]} 3. Nf3 {[%emt 0:00:29]} Bb4+ {[%emt 0:00:18]} 4. Bd2 {[%emt 0:00:21]} Qe7 {[%emt 0:00:22]} 5. g3 {[%emt 0:00:17]} O-O {[%emt 0:01:57]} 6. Bg2 {[%emt 0:00:50]} Bxd2+ 7. Qxd2 {[%emt 0:00:41]} d5 {[%emt 0:02:45]} 8. O-O {[%emt 0:02:57]} c6 {[%emt 0:04:22]} 9. Qc2 {[%emt 0:01:51]} Nbd7 {[%emt 0:01:49][%cal Bb8d7,Bd7e5,Be5c4][%mdl 32]} 10. Nbd2 {[%emt 0:01:22] E11: Bogo-Indian.} e5 {[%emt 0:04:20]} 11. cxd5 {[%emt 0:02:48]} Nxd5 {[%emt 0:00:45]} 12. e4 {[%emt 0:03:35] White is slightly better.} N5b6 {[%emt 0:21:06]} 13. Nb3 {[%emt 0:06:40]} exd4 {[%emt 0:07:42]} 14. Nfxd4 {[%emt 0:00:31]} Ne5 {[%emt 0:01:37] [#]} 15. f4 $146 {[%emt 0:03:09]} ({Predecessor:} 15. h3 a5 16. a3 a4 17. Nc5 Nec4 18. Nd3 Rd8 19. Ne2 Ne5 20. Rfd1 Nxd3 21. Rxd3 {½-½ (42) Babula,V (2559)-Markoja,B (2439) Tornelo INT 2021}) 15... Nec4 {[%emt 0:01:13]} 16. Rfe1 {[%emt 0:01:50] Against Ne3} Rd8 {[%emt 0:02:25]} 17. e5 {[%emt 0:27:45]} Qb4 {[%emt 0:20:06]} (17... a5 $14) 18. a3 $16 {[%emt 0:15:15]} Qa4 {[%emt 0:02:26]} (18... Qe7 $142) 19. e6 {[%emt 0:03:57]} (19. Qf2 $142 Na5 20. Nxa5 Qxd4 21. Qxd4 Rxd4 22. Red1 Rxd1+ 23. Rxd1) 19... Bxe6 {[%emt 0:03:12]} 20. Nxe6 {[%emt 0:01:52]} fxe6 {[%emt 0:00:26]} 21. Be4 {[%emt 0:10:10]} ({Of course not} 21. Rxe6 $6 Na5 22. Re3 Re8 $11) 21... Nd2 {[%emt 0:09:02]} 22. Bxh7+ {[%emt 0:01:33][%mdl 64] [#] Discovered Attack} Kh8 {[%emt 0:00:04]} 23. Nxd2 {[%emt 0:02:05]} Qxc2 {[%emt 0:02:45][%mdl 64] Remove Defender} 24. Bxc2 {[%emt 0:00:04]} Rxd2 {[%emt 0:00:04]} 25. Bg6 {[%emt 0:00:14]} Rxb2 {[%emt 0:07:24]} 26. Rxe6 {[%emt 0:01:28]} Rd2 {[%emt 0:04:05]} 27. Rae1 {[%emt 0:00:42] Threatening mate with Re8+.} Rdd8 {[%emt 0:00:04]} (27... Rf8 $16 28. Re8 Rd8) 28. Re7 {[%emt 0:04:53]} Rab8 {[%emt 0:00:25]} 29. h4 {[%emt 0:03:33]} (29. R7e5 $18) 29... Nd5 {[%emt 0:01:03]} 30. R7e6 {[%emt 0:00:44] &Bianco is more active.} c5 {[%emt 0:00:37] [#] White leaves nothing to chance now.} (30... a5 $14) 31. R6e5 $1 $18 {[%emt 0:00:57]} Kg8 {[%emt 0:02:08]} (31... c4 $16 {was called for.}) 32. Bf5 {[%emt 0:00:24]} ({Don't do} 32. Be4 $6 Nf6 $16) 32... Kf8 {[%emt 0:00:58]} 33. Be6 {[%emt 0:00:07]} Nf6 {[%emt 0:00:17]} 34. Rxc5 {[%emt 0:00:28] aiming for Rc7.} Rd6 $2 {[%emt 0:00:46]} (34... Re8 {is more resistant.} 35. Kg2 Rbd8) 35. Rc7 {[%emt 0:00:59]} Ne8 {[%emt 0:00:29]} 36. Rf7+ {[%emt 0:00:56]} Kg8 {[%emt 0:00:12][%cal Od6e6]} 37. Bb3 {[%emt 0:01:34]} Rb6 {[%emt 0:00:29]} 38. Ba2 {[%emt 0:01:17]} Nd6 {[%emt 0:00:41]} 39. Rxb7+ {[%emt 0:00:25]} Kf8 {[%emt 0:00:29]} 40. Rxb8+ {[%emt 0:00:30]} Rxb8 {[%emt 0:00:05][%mdl 4096] Endgame KRB-KRN} 41. Re2 {[%emt 0:30:26]} Rc8 {[%emt 0:30:21]} 42. Kh2 {[%emt 0:00:00]} Rc3 {[%emt 0:00:00]} 43. Bb1 {[%emt 0:00:00] Prevents Nf5. Hoping for Re6.} Kf7 $2 {[%emt 0:00:00]} (43... Rxa3 44. Re6 Nc8) 44. a4 {[%emt 0:00:00]} Ra3 {[%emt 0:00:00]} 45. Bc2 {[%emt 0:00:00]} Nc4 {[%emt 0:00:00]} 46. h5 {[%emt 0:00:00] Against g6. And now Bg6+ would win. White is clearly winning.} Ne3 {[%emt 0:00:00]} 47. Bg6+ {[%emt 0:00:00]} Kf6 {[%emt 0:00:00]} 48. Re1 {[%emt 0:00:00] Against Nf1+} Ng4+ {[%emt 0:00:00]} 49. Kh3 {[%emt 0:00:00]} Nf2+ {[%emt 0:00:00]} (49... Ne3 $142 50. Be4 Nc4) 50. Kh4 {[%emt 0:02:18]} Rxa4 {[%emt 0:00:00]} 51. Rc1 {[%emt 0:00:14]} Ra3 {[%emt 0:01:59]} 52. Rc6+ {[%emt 0:00:39]} Ke7 {[%emt 0:00:17]} 53. Rc7+ {[%emt 0:00:09]} Kf6 {[%emt 0:00:26]} 54. Rf7+ {[%emt 0:00:24]} Ke6 {[%emt 0:00:03]} 55. Rxg7 {[%emt 0:00:29]} Ra1 {[%emt 0:02:09]} 56. g4 {[%emt 0:01:31]} Kf6 {[%emt 0:01:35]} 57. Rf7+ {[%emt 0:00:10]} Ke6 {[%emt 0:00:06]} 58. Rf8 {[%emt 0:01:08]} Ra3 {[%emt 0:01:15]} 59. Kg5 {[%emt 0:00:56]} Ra5+ {[%emt 0:00:52]} 60. f5+ {[%emt 0:01:41]} Kd6 {[%emt 0:00:57]} 61. h6 {[%emt 0:00:21]} Ra4 {[%emt 0:01:11]} 62. Bh5 {[%emt 0:00:20] White wants to mate with h7.} Ne4+ {[%emt 0:00:22]} 63. Kg6 {[%emt 0:00:20] Weighted Error Value: White=0.23 (precise) /Black=0.45} 1-0

[Event "Uruguayan Championship 2022"]
[Site "Montevideo"]
[Date "2022.04.15"]
[Round "8.1"]
[White "Diaz Hollemaert, Nahuel"]
[Black "Vaz Lacuesta, Leonardo"]
[Result "1-0"]
[ECO "A35"]
[WhiteElo "2439"]
[BlackElo "2018"]
[Annotator "TA"]
[PlyCount "51"]
[EventDate "2022.04.08"]
[EventType "tourn"]
[EventCountry "URU"]
[SourceTitle "playchess.com"]
[Source "ChessBase"]
[SourceQuality "1"]
[TimeControl "40/5400+30:1800+30"]

{[%evp 19,51,16,26,20,28,10,25,28,60,58,78,55,82,81,294,285,296,295,290,290,984,977,960,960,958,938,1039,1016,1030,1008,957,929,29998,29999]} 1. Nf3 {[%emt 0:03:31]} Nf6 {[%emt 0:00:08]} 2. c4 {[%emt 0:00:53]} c5 {[%emt 0:00:04]} 3. Nc3 {[%emt 0:01:47]} Nc6 {[%emt 0:00:04]} 4. e3 {[%emt 0:06:02]} d5 {[%emt 0:22:47]} 5. d4 {[%emt 0:12:02]} e6 {[%emt 0:12:38]} 6. a3 {[%emt 0:05:12]} cxd4 {[%emt 0:06:58]} 7. exd4 {[%emt 0:02:14]} dxc4 {[%emt 0:00:39]} 8. Bxc4 {[%emt 0:00:02]} Be7 {[%emt 0:00:42]} 9. O-O {[%emt 0:00:10]} O-O {[%emt 0:00:26]} 10. Re1 {[%emt 0:13:10]} a6 {[%emt 0:08:26]} 11. Ba2 {[%emt 0:21:17] D26: Queen's Gambit Accepted: 4 e3 e6 5 Bxc5 c5 sidelines.} b5 {[%emt 0:14:57]} 12. d5 {[%emt 0:07:28]} exd5 {[%emt 0:01:22]} 13. Nxd5 {[%emt 0:00:02] White has an edge.} Nxd5 {[%emt 0:06:22]} 14. Qxd5 {[%emt 0:03:02]} Bb7 {[%emt 0:02:49]} 15. Qh5 $1 {[%emt 0:05:01] Bg5 is the strong threat. &Bianco is more active.} Qd6 {[%emt 0:14:54]} 16. Bg5 $40 {[%emt 0:06:32][%mdl 128] [#] Black must now prevent Rad1. White has strong attack.} Bd8 $146 {[%emt 0:00:59]} (16... h6 $2 17. Rad1 $1 Qc5 18. Rc1 $1 $18) (16... Rad8 $16 {was worth a try.}) ({Predecessor:} 16... Rad8 17. Bxe7 Nxe7 18. Ng5 Qg6 19. Qxh7+ Qxh7 20. Nxh7 Kxh7 21. Rxe7 Bd5 22. Bxd5 Rxd5 {1-0 (75) Hoffman,A (2441)-Ricardi,P (2493) Buenos Aires 2019}) 17. Rad1 $18 {[%emt 0:00:56][%cal Ba1d1,Bd1d7,Bd7f7][%mdl 32]} ({Not} 17. Bxd8 Raxd8 18. Ng5 Qg6 19. Qxg6 hxg6 $16) 17... Qg6 {[%emt 0:00:34]} 18. Qxg6 {[%emt 0:00:36]} hxg6 {[%emt 0:00:06] [#]} 19. Rd7 $1 {[%emt 0:00:19]} Bc8 {[%emt 0:03:31] [#]} (19... Na5 20. Bd2 Bxf3) 20. Rxf7 $1 {[%emt 0:01:37][%mdl 512]} Rxf7 {[%emt 0:01:06]} 21. Re8+ {[%emt 0:00:07][%mdl 64] Deflection, Double Attack} Kh7 {[%emt 0:00:25]} 22. Bxf7 {[%emt 0:00:06] Intending Bg8+ and mate.} Bxg5 {[%emt 0:00:44]} 23. Nxg5+ {[%emt 0:03:04]} Kh6 {[%emt 0:00:03]} 24. f4 {[%emt 0:00:20][%cal Re8h8]} Bb7 {[%emt 0:00:54]} 25. Re3 {[%emt 0:00:14][%cal Re3h3]} Kh5 {[%emt 0:00:48]} 26. Be6 {[%emt 0:00:24] White took control after the opening.  Weighted Error Value: White=0.01 (flawless) /Black=0.93} 1-0

[Event "Uruguayan Championship 2022"]
[Site "Montevideo"]
[Date "2022.04.15"]
[Round "8.2"]
[White "Vazquez, Facundo"]
[Black "Hoffman, Alejandro"]
[Result "1/2-1/2"]
[ECO "A44"]
[WhiteElo "2319"]
[BlackElo "2403"]
[Annotator "TA"]
[PlyCount "37"]
[EventDate "2022.04.08"]
[EventType "tourn"]
[EventCountry "URU"]
[SourceTitle "playchess.com"]
[Source "ChessBase"]
[SourceQuality "1"]
[TimeControl "40/5400+30:1800+30"]

{[%evp 9,37,82,83,66,116,113,117,106,118,107,130,112,110,84,97,103,154,148,160,107,91,100,115,102,128,99,95,88,83,59]} 1. d4 {[%emt 0:00:03]} c5 {[%emt 0:00:16]} 2. d5 {[%emt 0:00:08]} e5 {[%emt 0:00:14]} 3. e4 {[%emt 0:00:10]} d6 {[%emt 0:00:08]} 4. a4 {[%emt 0:00:35]} Be7 {[%emt 0:02:48]} 5. Nd2 {[%emt 0:00:21]} Nf6 {[%emt 0:01:49] [#]} 6. h3 $146 {[%emt 0:02:42] A44: Semi-Benoni.} ({Predecessor:} 6. Bd3 O-O 7. Ne2 Nbd7 8. Nc3 Ne8 9. Nc4 Nb8 10. O-O Bg5 11. a5 Bxc1 12. Qxc1 {1-0 (25) Lins,T (2454)-Even,R (2494) GER email 2020}) 6... h5 {[%emt 0:13:28]} ({Black should try} 6... O-O $14) 7. Ne2 {[%emt 0:01:46]} Nbd7 {[%emt 0:04:38]} 8. Nc3 {[%emt 0:09:04]} Nf8 {[%emt 0:05:39]} 9. Nc4 {[%emt 0:02:19]} Ng6 {[%emt 0:06:55]} 10. Be2 {[%emt 0:02:56]} h4 {[%emt 0:00:58]} 11. Bg5 {[%emt 0:10:06]} Kf8 {[%emt 0:08:20]} 12. Qd2 {[%emt 0:12:17]} Ne8 {[%emt 0:09:46]} (12... Kg8 $142) 13. Be3 $16 {[%emt 0:02:27] &Bianco is much more active.} Nf6 {[%emt 0:03:58]} 14. f4 {[%emt 0:21:46]} (14. O-O $142) 14... exf4 {[%emt 0:02:42] White is better.} 15. Bxf4 {[%emt 0:00:07]} Kg8 {[%emt 0:05:23]} 16. Bh2 {[%emt 0:02:43]} Ne8 {[%emt 0:04:56]} 17. O-O {[%emt 0:00:52]} Bg5 {[%emt 0:01:56]} 18. Qd3 {[%emt 0:02:27] Nb5 is the strong threat.} f6 {[%emt 0:02:18]} 19. Rf2 {[%emt 0:13:27] Weighted Error Value: White=0.12 (very precise) /Black=0.14 (very precise)} 1/2-1/2